bitfinex/quotes_SOLUSD_20250416
["timestamp","ask_amount","ask_price","bid_price","bid_amount"]
[1744826812399,54.01621248,127.21,127.17,7.86348981]
[1744826812577,54.01621248,127.24,127.19,54.01621248]
[1744826812779,54.01621248,127.2,127.17,7.86348981]
[1744826812996,27.50537309,127.25,127.17,7.86348981]
[1744826812997,27.50537309,127.25,127.17,61.87970229]
[1744826813392,27.50537309,127.25,127.19,54.01621248]
[1744826813393,7.85900767,127.25,127.19,54.01621248]
[1744826813701,7.85900767,127.25,127.17,53.52221435]
[1744826813702,7.85900767,127.25,127.17,33.86348981]
[1744826813901,7.85900767,127.25,127.19,54.01621248]
[1744826814100,54.01621248,127.24,127.19,54.01621248]
[1744826814404,54.01621248,127.23,127.19,61.87795932]
[1744826814601,54.01621248,127.24,127.19,61.87795932]
[1744826814806,81.51896275,127.26,127.18,7.86271165]
[1744826814995,54.01621248,127.23,127.18,7.86271165]
[1744826815192,81.51896275,127.26,127.18,61.87892413]
[1744826815392,54.01621248,127.23,127.18,61.87892413]
[1744826815595,81.51896275,127.26,127.18,61.87892413]
[1744826815912,54.01621248,127.22,127.18,61.87892413]
[1744826816088,54.01621248,127.23,127.18,61.87892413]
[1744826816409,54.01621248,127.22,127.18,7.86271165]
[1744826816988,61.87667158,127.22,127.17,61.87943836]
[1744826817208,73.6610341,127.26,127.17,61.87943836]
[1744826817381,54.01621248,127.2,127.13,27.67303547]
[1744826817585,54.01621248,127.17,127.13,61.88217645]
[1744826817808,54.01621248,127.17,127.13,7.86596397]
[1744826818215,18.64964886,127.24,127.13,61.88217645]
[1744826818388,18.64964886,127.24,127.07,1.0]
[1744826818389,54.01621248,127.15,127.07,1.0]
[1744826818589,54.01621248,127.13,127.09,73.6870734]
[1744826818828,54.01621248,127.13,127.08,91.88527134]
[1744826819009,19.65752045,127.18,127.08,91.88527134]
[1744826819010,54.01621248,127.09,127.08,30.0]
[1744826819209,54.01621248,127.09,127.05,7.8707238]
[1744826819400,54.01621248,127.07,127.04,4.656]
[1744826819706,84.79621248,127.14,127.05,84.01621248]
[1744826819908,54.01621248,127.1,127.05,84.01621248]
[1744826820110,84.79621248,127.14,127.05,30.0]
[1744826820411,54.01621248,127.08,127.05,30.0]
[1744826820608,54.01621248,127.07,127.05,30.0]
[1744826820809,54.01621248,127.07,127.04,4.656]
[1744826821005,245.22,127.18,127.07,26.0]
[1744826821190,7.86225332,127.19,127.12,54.01621248]
[1744826821398,61.8784658,127.19,127.14,54.01621248]
[1744826821586,54.01621248,127.18,127.13,54.01621248]
[1744826821788,7.86225332,127.19,127.13,54.01621248]
[1744826822009,7.86163522,127.2,127.14,54.01621248]
[1744826822198,7.86163522,127.2,127.16,54.01621248]
[1744826822406,54.01621248,127.18,127.14,54.01621248]
[1744826822612,54.01621248,127.18,127.13,54.01621248]
[1744826822908,54.01621248,127.17,127.13,54.01621248]
[1744826823304,54.01621248,127.17,127.14,7.86534528]
[1744826823506,54.01621248,127.18,127.14,7.86534528]
[1744826823720,63.02451248,127.26,127.17,54.01621248]
[1744826823905,0.03,127.21,127.18,54.01621248]
[1744826824101,54.01621248,127.19,127.13,12.17658788]
[1744826824308,108.03242496,127.14,127.08,4.6557]
[1744826824602,72.66586134,127.2,127.09,54.01621248]
[1744826824603,30.8,127.19,127.09,54.01621248]
[1744826824816,54.01621248,127.12,127.08,12.52475886]
[1744826824997,54.01621248,127.11,127.08,12.52475886]
[1744826825916,54.01621248,127.11,127.08,4.6557]
[1744826826099,54.01621248,127.09,127.03,13.1499]
[1744826826301,54.01621248,127.06,127.03,12.23863479]
[1744826826611,54.01621248,127.07,127.03,66.25484727]
[1744826826807,54.01621248,127.14,127.04,54.01621248]
[1744826827118,54.01621248,127.09,127.04,54.01621248]
[1744826827418,54.01621248,127.08,127.04,54.01621248]
[1744826827622,19.6621182,127.15,127.07,54.01621248]
[1744826827807,54.01621248,127.15,127.1,80.01621248]
[1744826827996,7.86287152,127.18,127.11,54.01621248]
[1744826828198,7.86287152,127.18,127.1,26.0]
[1744826828415,54.01621248,127.12,127.07,80.01621248]
[1744826828616,54.01621248,127.11,127.07,26.0]
[1744826828916,54.01621248,127.1,127.03,31.91902524]
[1744826829129,54.01621248,127.1,127.05,54.01621248]
[1744826829420,54.01621248,127.14,127.05,54.01621248]
[1744826829421,54.01621248,127.09,127.05,54.01621248]
[1744826829592,18.64964886,127.12,127.03,12.23853701]
[1744826829998,54.01621248,127.04,127.01,0.063]
[1744826830199,54.01621248,127.08,127.01,0.063]
[1744826830419,54.01621248,127.02,127.01,0.063]
[1744826830617,54.01621248,127.08,127.01,0.063]
[1744826830804,30.8,127.11,127.05,54.01621248]
[1744826831012,54.01621248,127.06,127.01,0.063]
[1744826831200,54.01621248,127.04,127.01,0.063]
[1744826831521,54.01621248,127.02,127.01,0.063]
[1744826831696,108.03242496,127.02,127.01,0.063]
[1744826831900,126.68207382,127.02,127.01,0.063]
[1744826832095,47.29861043,127.05,127.01,0.063]
[1744826832096,8.5068,127.05,127.01,0.063]
[1744826832525,54.01621248,127.02,127.01,0.063]
[1744826832902,108.03242496,127.02,127.01,0.063]
[1744826833096,108.03242496,127.02,126.94,0.063]
[1744826833397,27.29861043,127.05,126.94,26.063]
[1744826833398,84.83621248,127.03,126.94,26.063]
[1744826833627,92.70840594,127.03,126.98,54.01621248]
[1744826833925,54.01621248,126.99,126.94,0.063]
[1744826834226,54.01621248,126.95,126.94,0.063]
[1744826834431,103.48586134,126.95,126.94,0.063]
[1744826834730,84.83621248,126.95,126.94,0.063]
[1744826835233,84.83621248,126.95,126.93,0.063]
[1744826835234,18.64964886,126.94,126.93,0.063]
[1744826835399,18.64964886,126.91,126.9,0.063]
[1744826835595,126.68207382,126.91,126.9,0.063]
[1744826835801,0.14216157,126.89,126.88,0.063]
[1744826836000,9.16028471,126.87,126.77,0.063]
[1744826836302,108.03242496,126.78,126.77,0.063]
[1744826836707,157.50207382,126.78,126.77,0.063]
[1744826836912,18.64964886,126.82,126.77,0.063]
[1744826837320,276.36,126.83,126.77,0.063]
[1744826837521,26.53484047,126.82,126.77,0.063]
[1744826837724,54.01621248,126.81,126.77,0.063]
[1744826837924,54.01621248,126.82,126.77,54.07921248]
[1744826838127,54.01621248,126.81,126.77,0.063]
[1744826838427,276.36,126.83,126.77,0.063]
[1744826838622,54.01621248,126.81,126.77,0.063]
[1744826838930,19.6999981,126.91,126.8,54.01621248]
[1744826839133,38.70084167,126.89,126.79,26.0]
[1744826839303,54.01621248,126.87,126.82,54.01621248]
[1744826839505,38.70084167,126.89,126.85,54.01621248]
[1744826839506,84.83621248,126.89,126.85,54.01621248]
[1744826839739,54.01621248,126.88,126.84,54.01621248]
[1744826839905,30.82,126.89,126.83,48.01621248]
[1744826840224,30.82,126.89,126.84,54.01621248]
[1744826840225,84.83621248,126.89,126.84,54.01621248]
[1744826840430,84.83621248,126.89,126.85,54.01621248]
[1744826840619,30.82,126.89,126.83,54.01621248]
[1744826840927,30.82,126.89,126.82,54.01621248]
[1744826840928,38.70090554,126.89,126.82,54.01621248]
[1744826841234,54.01621248,126.87,126.82,54.01621248]
[1744826841425,38.70090554,126.89,126.82,54.01621248]
[1744826841426,30.82,126.89,126.85,61.89953924]
[1744826841734,54.01621248,126.87,126.83,7.88423005]
[1744826842025,54.01621248,126.84,126.8,7.88643533]
[1744826842215,54.01621248,126.82,126.78,7.88767944]
[1744826842415,54.01621248,126.81,126.78,7.88767944]
[1744826842615,54.01621248,126.8,126.77,4.5476]
[1744826842827,54.01621248,126.84,126.77,4.5476]
[1744826843006,0.14216157,126.87,126.77,66.45204426]
[1744826843327,18.64964886,126.88,126.79,54.01621248]
[1744826843530,54.01621248,126.82,126.78,54.01621248]
[1744826843835,54.01621248,126.82,126.77,12.43583178]
[1744826843836,54.01621248,126.82,126.77,66.45204426]
[1744826844030,54.01621248,126.82,126.77,12.43583178]
[1744826844212,54.01621248,126.84,126.77,58.56381248]
[1744826844410,54.01621248,126.81,126.77,66.45207482]
[1744826844608,54.01621248,126.79,126.77,0.063]
[1744826845022,53.58729407,126.87,126.78,54.01621248]
[1744826845226,54.01621248,126.83,126.78,54.01621248]
[1744826845404,8.2576,126.88,126.81,54.01621248]
[1744826845607,54.01621248,126.87,126.82,54.01621248]
[1744826845831,38.70137898,126.89,126.81,80.01621248]
[1744826845832,54.01621248,126.86,126.81,80.01621248]
[1744826846225,38.70137898,126.89,126.81,80.01621248]
[1744826846409,54.01621248,126.86,126.82,54.01621248]
[1744826846832,30.82,126.89,126.84,54.01621248]
[1744826847035,54.01621248,126.88,126.84,54.01621248]
[1744826847225,54.01621248,126.85,126.8,54.01621248]
[1744826847405,54.01621248,126.84,126.8,54.01621248]
[1744826847610,38.70085299,126.89,126.8,54.01621248]
[1744826847611,54.01621248,126.85,126.8,54.01621248]
[1744826847821,54.01621248,126.81,126.77,0.063]
[1744826848036,54.01621248,126.78,126.77,0.063]
[1744826849937,115.9201044,126.78,126.77,0.063]
[1744826850230,134.71191483,126.78,126.77,0.063]
[1744826850607,134.99623797,126.78,126.77,0.063]
[1744826851032,18.933972,126.77,126.76,0.063]
[1744826851217,73.09234605,126.77,126.74,0.063]
[1744826851422,73.09234605,126.77,126.7,0.063]
[1744826851423,0.14216157,126.73,126.7,0.063]
[1744826851612,72.95018448,126.71,126.7,0.063]
[1744826852016,54.01621248,126.71,126.7,0.063]
[1744826852527,84.83621248,126.73,126.7,0.063]
[1744826852720,30.82,126.73,126.7,0.063]
[1744826852935,54.01621248,126.76,126.71,54.01621248]
[1744826853135,54.01621248,126.77,126.72,54.01621248]
[1744826853424,54.01621248,126.74,126.7,0.063]
[1744826853845,54.01621248,126.75,126.7,54.07921248]
[1744826854224,54.01621248,126.76,126.71,54.01621248]
[1744826854744,54.01621248,126.75,126.71,54.01621248]
[1744826854917,54.01621248,126.76,126.72,54.01621248]
[1744826855239,54.01621248,126.76,126.71,7.89166884]
[1744826855433,54.01621248,126.75,126.71,7.89166884]
[1744826855620,54.01621248,126.76,126.71,61.90788132]
[1744826855824,6.37505917,126.85,126.74,80.01621248]
[1744826856041,54.01621248,126.82,126.77,54.01621248]
[1744826856222,54.01621248,126.81,126.75,26.0]
[1744826856623,245.82,126.83,126.8,54.01621248]
[1744826856834,54.01621248,126.82,126.76,7.88892395]
[1744826857023,253.70457076,126.83,126.76,7.88892395]
[1744826857349,18.64964886,126.76,126.7,0.063]
[1744826857516,72.66586134,126.71,126.7,0.063]
[1744826858136,72.80802291,126.71,126.7,0.063]
[1744826858737,54.01621248,126.71,126.7,0.063]
[1744826859334,18.64964886,126.7,126.64,0.063]
[1744826859849,54.01621248,126.65,126.64,0.063]
[1744826860022,54.01621248,126.66,126.64,0.063]
[1744826860216,54.01621248,126.65,126.64,0.063]
[1744826860735,72.66586134,126.65,126.64,0.063]
[1744826861043,54.01621248,126.65,126.64,0.063]
[1744826861249,84.85621248,126.67,126.64,0.063]
[1744826861420,30.84,126.67,126.64,0.063]
[1744826861625,30.84,126.67,126.65,54.01621248]
[1744826861949,54.01621248,126.7,126.65,54.01621248]
[1744826862121,54.01621248,126.69,126.64,80.07921248]
[1744826862439,300.05621248,126.72,126.64,0.063]
[1744826862440,54.01621248,126.67,126.64,0.063]
[1744826862641,18.64964886,126.71,126.64,0.063]
[1744826863029,26.54188249,126.71,126.64,0.063]
[1744826863237,54.01621248,126.69,126.65,54.01621248]
[1744826863425,54.01621248,126.69,126.64,54.07921248]
[1744826863623,54.01621248,126.67,126.64,0.063]
[1744826863833,54.01621248,126.66,126.64,0.063]
[1744826864027,307.94786839,126.72,126.64,54.07921248]
[1744826864243,54.01621248,126.69,126.64,0.063]
[1744826864544,300.05621248,126.72,126.65,80.01621248]
[1744826864743,7.88767944,126.78,126.7,26.0]
[1744826864930,54.01621248,126.75,126.7,61.90860052]
[1744826865135,54.01621248,126.76,126.7,7.89238804]
[1744826865442,54.01621248,126.75,126.7,61.90860052]
[1744826865625,54.01621248,126.75,126.69,26.0]
[1744826865626,54.01621248,126.73,126.69,33.89315778]
[1744826865826,54.01621248,126.73,126.69,7.89315778]
[1744826866021,54.01621248,126.7,126.67,4.3147]
[1744826866235,54.01621248,126.72,126.64,7.95914799]
[1744826866236,54.01621248,126.68,126.64,7.95914799]
[1744826866534,54.01621248,126.66,126.64,7.95914799]
[1744826866840,54.01621248,126.72,126.65,54.01621248]
[1744826867150,54.01621248,126.74,126.69,54.01621248]
[1744826867354,54.01621248,126.77,126.72,54.01621248]
[1744826867554,54.01621248,126.73,126.64,27.70014609]
[1744826867729,0.14216157,126.76,126.67,26.0]
[1744826867730,54.01621248,126.7,126.67,26.0]
[1744826868046,0.14216157,126.76,126.67,26.0]
[1744826868047,54.01621248,126.72,126.67,80.01621248]
[1744826868249,54.01621248,126.71,126.67,26.0]
[1744826868551,54.01621248,126.72,126.67,80.01621248]
[1744826869047,7.88976925,126.75,126.68,7.8939059]
[1744826869247,54.01621248,126.73,126.68,7.8939059]
[1744826869449,54.01621248,126.75,126.68,7.8939059]
[1744826869646,54.01621248,126.75,126.7,54.01621248]
[1744826869946,54.01621248,126.74,126.7,54.01621248]
[1744826870343,54.01621248,126.74,126.69,54.01621248]
[1744826870930,54.01621248,126.74,126.7,7.89265982]
[1744826871133,54.01621248,126.73,126.69,7.89300358]
[1744826871642,54.01621248,126.73,126.69,61.90921606]
[1744826871842,54.01621248,126.73,126.69,7.89300358]
[1744826872351,54.01621248,126.72,126.69,7.89300358]
[1744826872533,54.01621248,126.72,126.68,7.89367218]
[1744826872732,54.01621248,126.73,126.68,61.90988466]
[1744826872936,54.01621248,126.74,126.7,7.89265982]
[1744826873161,54.01621248,126.73,126.68,61.91011838]
[1744826874041,54.01621248,126.73,126.68,7.8939059]
[1744826874247,54.01621248,126.74,126.69,54.01621248]
[1744826874459,54.01621248,126.74,126.68,7.8939059]
[1744826874633,54.01621248,126.74,126.69,54.01621248]
[1744826874835,54.01621248,126.73,126.68,61.91011838]
[1744826875035,54.01621248,126.73,126.69,54.01621248]
[1744826875457,30.84,126.79,126.72,54.01621248]
[1744826875657,54.01621248,126.78,126.73,54.01621248]
[1744826875960,54.01621248,126.77,126.73,54.01621248]
[1744826876159,54.01621248,126.77,126.72,54.01621248]
[1744826876345,38.72734402,126.79,126.71,30.3495]
[1744826876346,54.01621248,126.74,126.71,30.3495]
[1744826876544,54.01621248,126.73,126.71,30.3495]
[1744826876839,72.66586134,126.78,126.71,30.3495]
[1744826877052,38.86950559,126.79,126.73,54.01621248]
[1744826877053,30.84,126.79,126.73,54.01621248]
[1744826877241,30.84,126.79,126.76,54.01621248]
[1744826878053,7.91539954,126.82,126.76,54.01621248]
[1744826878054,54.01621248,126.8,126.76,54.01621248]
[1744826878255,0.03,126.82,126.78,54.01621248]
[1744826878457,0.03,126.82,126.79,54.01621248]
[1744826878662,54.04621248,126.82,126.77,80.01621248]
[1744826878960,54.01621248,126.79,126.75,26.0]
[1744826879352,54.01621248,126.79,126.76,7.88892395]
[1744826879933,0.03,126.82,126.76,61.90513643]
[1744826880139,54.01621248,126.81,126.77,54.01621248]
[1744826880341,54.04621248,126.82,126.77,54.01621248]
[1744826880573,0.03,126.82,126.79,54.01621248]
[1744826880939,54.01621248,126.81,126.77,54.01621248]
[1744826881139,54.01621248,126.81,126.76,81.6274463]
[1744826881462,0.03,126.82,126.81,26.0]
[1744826881656,0.03,126.82,126.8,80.01621248]
[1744826881870,0.03,126.82,126.8,26.0]
[1744826882043,54.04621248,126.82,126.8,26.0]
[1744826882362,54.01621248,126.81,126.76,7.88892395]
[1744826882564,54.01621248,126.79,126.76,7.88892395]
[1744826882745,54.01621248,126.79,126.75,7.88941904]
[1744826882946,54.01621248,126.79,126.75,61.90563152]
[1744826883139,54.01621248,126.79,126.75,7.88941904]
[1744826883362,7.88581342,126.81,126.75,61.90563152]
[1744826883665,54.01621248,126.81,126.76,54.01621248]
[1744826883899,54.01621248,126.81,126.75,27.61328491]
[1744826884070,0.03,126.82,126.79,54.01621248]
[1744826884250,54.04621248,126.82,126.77,80.01621248]
[1744826885060,0.03,126.82,126.78,54.01621248]
[1744826885264,0.03,126.82,126.77,80.01621248]
[1744826885448,54.01621248,126.81,126.77,80.01621248]
[1744826885759,54.01621248,126.78,126.72,7.89141414]
[1744826885963,54.01621248,126.74,126.71,12.2414733]
[1744826886144,54.01621248,126.73,126.71,4.3495]
[1744826886751,54.01621248,126.74,126.71,12.24125992]
[1744826886946,18.64964886,126.77,126.66,7.89515237]
[1744826886947,54.01621248,126.72,126.66,7.89515237]
[1744826887152,54.01621248,126.69,126.66,7.89515237]
[1744826887446,54.01621248,126.67,126.65,7.89549707]
[1744826887655,54.01621248,126.67,126.64,12.33139559]
[1744826887860,54.01621248,126.67,126.64,4.4352]
[1744826888075,7.89203693,126.71,126.64,4.4352]
[1744826888076,54.01621248,126.66,126.64,0.063]
[1744826888265,54.01621248,126.65,126.64,0.063]
[1744826889365,61.91198823,126.65,126.64,0.063]
[1744826889667,80.56163709,126.65,126.64,0.063]
[1744826890065,80.70379866,126.65,126.64,0.063]
[1744826890263,80.9881218,126.65,126.64,0.063]
[1744826890581,80.70379866,126.65,126.64,0.063]
[1744826890779,0.14216157,126.64,126.63,0.063]
[1744826891082,0.28432314,126.63,126.62,1e-08]
[1744826891279,7.89827027,126.61,126.58,0.063]
[1744826891480,54.01621248,126.59,126.58,0.063]
[1744826891885,7.89827027,126.61,126.58,0.063]
[1744826892183,54.01621248,126.59,126.58,0.063]
[1744826892659,72.66586134,126.59,126.58,0.063]
[1744826892979,72.66586134,126.59,126.51,0.063]
[1744826892980,18.64964886,126.58,126.51,0.063]
[1744826893181,54.01621248,126.53,126.51,0.063]
[1744826893589,54.01621248,126.52,126.51,0.063]
[1744826894364,72.80802291,126.52,126.51,0.063]
[1744826894593,0.14216157,126.51,126.5,0.063]
[1744826894884,54.15837405,126.51,126.5,0.063]
[1744826895086,108.03242496,126.51,126.41,2.94392]
[1744826895275,18.79181043,126.53,126.44,54.01621248]
[1744826895578,7.90326404,126.53,126.46,54.01621248]
[1744826895783,54.01621248,126.51,126.46,54.01621248]
[1744826895968,54.01621248,126.5,126.46,54.01621248]
[1744826896280,54.01621248,126.47,126.43,61.92572762]
[1744826896692,54.01621248,126.45,126.41,2.94392]
[1744826896866,54.01621248,126.44,126.41,2.94392]
[1744826897263,54.01621248,126.42,126.41,2.94392]
[1744826897463,18.64964886,126.45,126.41,2.94392]
[1744826897676,54.01621248,126.44,126.41,2.94392]
[1744826897876,54.01621248,126.43,126.41,2.94392]
[1744826898079,54.01621248,126.42,126.41,2.94392]
[1744826898272,7.90763877,126.46,126.41,2.94392]
[1744826898568,54.01621248,126.45,126.41,2.94392]
[1744826898902,18.64964886,126.45,126.41,2.94392]
[1744826899086,54.01621248,126.42,126.41,2.94392]
[1744826899275,157.78639696,126.42,126.41,2.94392]
[1744826899486,7.91201835,126.39,126.37,0.063]
[1744826899684,7.91076655,126.41,126.37,0.063]
[1744826899871,38.7301575,126.42,126.37,0.063]
[1744826900081,54.01621248,126.41,126.37,0.063]
[1744826900404,54.01621248,126.39,126.37,0.063]
[1744826900892,54.01621248,126.38,126.37,0.063]
[1744826901192,54.01621248,126.39,126.37,0.063]
[1744826901388,54.01621248,126.41,126.37,0.063]
[1744826901589,54.01621248,126.4,126.37,0.063]
[1744826901785,54.01621248,126.41,126.37,0.063]
[1744826902087,30.82,126.42,126.39,54.01621248]
[1744826902267,277.2,126.5,126.41,54.01621248]
[1744826902466,54.01621248,126.46,126.41,54.01621248]
[1744826902676,54.01621248,126.44,126.4,80.01621248]
[1744826903290,54.01621248,126.43,126.4,26.0]
[1744826903483,98.66586134,126.48,126.37,0.063]
[1744826903484,54.01621248,126.41,126.37,0.063]
[1744826903799,54.01621248,126.41,126.36,87.49308536]
[1744826904094,0.14216157,126.47,126.38,0.14216157]
[1744826904271,18.64964886,126.47,126.4,54.01621248]
[1744826904472,54.01621248,126.45,126.41,54.01621248]
[1744826904876,54.01621248,126.42,126.36,87.13524693]
[1744826905171,54.01621248,126.4,126.35,8.05627714]
[1744826905493,54.01621248,126.38,126.34,4.1123]
[1744826905699,54.01621248,126.39,126.35,54.01621248]
[1744826906003,54.01621248,126.4,126.35,54.01621248]
[1744826906178,92.76650211,126.42,126.37,54.01621248]
[1744826906382,30.84,126.42,126.38,54.01621248]
[1744826906581,84.85621248,126.42,126.37,26.0]
[1744826906785,38.75061909,126.42,126.36,26.0]
[1744826907094,54.01621248,126.41,126.36,80.01621248]
[1744826907297,54.01621248,126.4,126.36,26.0]
[1744826907594,38.75061909,126.42,126.37,8.05543212]
[1744826907595,30.84,126.42,126.37,8.05543212]
[1744826907981,30.84,126.42,126.38,54.01621248]
[1744826908174,54.01621248,126.41,126.36,26.0]
[1744826908373,30.84,126.42,126.38,54.01621248]
[1744826908581,61.92554111,126.44,126.39,54.01621248]
[1744826908788,30.76,126.47,126.41,54.01621248]
[1744826908987,54.01621248,126.46,126.42,54.01621248]
[1744826909187,84.77621248,126.47,126.42,26.0]
[1744826909388,30.76,126.47,126.43,54.01621248]
[1744826909569,38.66706347,126.47,126.43,54.01621248]
[1744826909776,7.90451347,126.51,126.45,54.01621248]
[1744826909984,7.90451347,126.51,126.46,54.01621248]
[1744826910303,7.90451347,126.51,126.47,54.01621248]
[1744826910480,54.01621248,126.5,126.46,26.0]
[1744826911003,54.01621248,126.5,126.46,80.01621248]
[1744826911296,54.01621248,126.47,126.42,26.0]
[1744826911497,54.01621248,126.45,126.4,61.92742869]
[1744826911703,7.90813029,126.46,126.4,61.92742869]
[1744826911894,7.90813029,126.46,126.4,33.91121621]
[1744826912200,54.01621248,126.44,126.39,12.41791203]
[1744826912500,54.01621248,126.42,126.39,4.3638]
[1744826912689,7.90813029,126.46,126.39,4.3638]
[1744826912690,7.90813029,126.46,126.39,66.29193364]
[1744826912889,54.01621248,126.46,126.41,54.01621248]
[1744826913105,54.01621248,126.46,126.41,26.0]
[1744826913297,54.01621248,126.47,126.42,54.01621248]
[1744826913708,54.01621248,126.46,126.42,61.92610749]
[1744826914013,61.92332932,126.47,126.42,61.92610749]
[1744826914189,54.01621248,126.47,126.42,61.92610749]
[1744826914579,54.01621248,126.48,126.43,54.01621248]
[1744826914995,7.90597891,126.49,126.42,61.92610749]
[1744826914996,54.01621248,126.47,126.42,61.92610749]
[1744826915300,54.01621248,126.48,126.44,54.01621248]
[1744826915503,54.01621248,126.48,126.44,7.90872087]
[1744826915710,54.01621248,126.48,126.44,26.0]
[1744826915891,254.58411828,126.52,126.45,54.01621248]
[1744826916202,54.01621248,126.54,126.45,54.01621248]
[1744826916203,7.90263948,126.54,126.49,54.01621248]
[1744826916400,30.74,126.55,126.51,54.01621248]
[1744826916708,54.01621248,126.54,126.49,54.01621248]
[1744826917002,54.01621248,126.54,126.49,80.01621248]
[1744826917298,111.30795161,126.55,126.5,54.01621248]
[1744826917477,38.64209027,126.55,126.51,54.01621248]
[1744826917683,78.75621248,126.55,126.5,61.92094795]
[1744826917884,86.65825888,126.55,126.5,61.92094795]
[1744826918483,24.74,126.55,126.51,54.01621248]
[1744826918699,24.74,126.55,126.52,54.01621248]
[1744826918918,61.91742835,126.57,126.52,54.01621248]
[1744826919297,54.01621248,126.56,126.51,54.01621248]
[1744826919600,54.01621248,126.52,126.49,30.0147]
[1744826920000,61.91971953,126.53,126.49,4.0147]
[1744826920380,54.01621248,126.52,126.49,4.0147]
[1744826920585,54.01621248,126.5,126.44,4.1342]
[1744826920902,54.01621248,126.49,126.44,58.15041248]
[1744826921105,54.01621248,126.49,126.44,4.1342]
[1744826921106,54.01621248,126.45,126.44,4.1342]
[1744826921316,54.01621248,126.49,126.44,58.15041248]
[1744826921503,30.74,126.51,126.44,66.05930207]
[1744826921689,54.01621248,126.48,126.44,12.04308959]
[1744826922006,54.01621248,126.45,126.39,4.1342]
[1744826922196,54.01621248,126.47,126.41,80.01621248]
[1744826922580,54.01621248,126.46,126.41,80.01621248]
[1744826922782,54.01621248,126.48,126.43,54.30053562]
[1744826922982,0.14216157,126.56,126.47,80.01621248]
[1744826923182,54.01621248,126.51,126.47,26.0]
[1744826923389,54.01621248,126.49,126.45,80.01621248]
[1744826923590,54.01621248,126.49,126.45,33.9082099]
[1744826923785,54.01621248,126.48,126.43,0.28432314]
[1744826923988,54.01621248,126.44,126.39,4.1342]
[1744826924192,72.66586134,126.48,126.39,4.1342]
[1744826924193,54.01621248,126.42,126.39,4.1342]
[1744826924384,72.80802291,126.48,126.36,7.91352158]
[1744826924385,54.01621248,126.4,126.36,7.91352158]
[1744826924593,54.01621248,126.42,126.36,33.91352158]
[1744826924797,54.01621248,126.42,126.37,54.01621248]
[1744826925089,54.01621248,126.38,126.34,54.01621248]
[1744826925507,54.01621248,126.39,126.35,26.0]
[1744826925708,54.01621248,126.38,126.35,26.0]
[1744826925914,54.01621248,126.38,126.33,66.12526821]
[1744826926232,54.01621248,126.36,126.33,4.1935]
[1744826926820,54.01621248,126.35,126.33,0.063]
[1744826927211,54.01621248,126.34,126.33,0.063]
[1744826927410,54.01621248,126.35,126.33,0.063]
[1744826927712,19.92220745,126.39,126.33,0.063]
[1744826927907,54.01621248,126.37,126.33,0.063]
[1744826928102,33.91156536,126.4,126.34,54.01621248]
[1744826928416,54.01621248,126.38,126.33,80.07921248]
[1744826928613,54.01621248,126.36,126.33,0.063]
[1744826928955,72.66586134,126.34,126.33,0.063]
[1744826929429,73.09234605,126.34,126.33,0.063]
[1744826929625,72.80802291,126.34,126.33,0.063]
[1744826929829,80.7231725,126.34,126.33,0.063]
[1744826930022,81.00749564,126.34,126.33,0.063]
[1744826930911,81.00749564,126.34,126.33,1e-08]
[1744826931107,81.00749564,126.34,126.3,0.063]
[1744826931108,44.64964886,126.31,126.3,0.063]
[1744826931336,99.09234605,126.31,126.3,0.063]
[1744826932016,161.02558806,126.31,126.3,0.063]
[1744826932216,161.02558806,126.31,126.28,0.063]
[1744826932217,19.07613357,126.3,126.29,1e-08]
[1744826932427,127.10855853,126.3,126.28,0.063]
[1744826932617,26.14216157,126.26,126.25,0.063]
[1744826932812,99.09234605,126.26,126.25,0.063]
[1744826933013,153.10855853,126.26,126.25,0.063]
[1744826933226,173.10855853,126.26,126.25,1e-08]
[1744826933525,99.09234605,126.26,126.25,1e-08]
[1744826933934,107.01251078,126.26,126.25,1e-08]
[1744826934818,161.02872326,126.26,126.25,1e-08]
[1744826935024,106.72818764,126.26,126.25,1e-08]
[1744826935331,161.02872326,126.26,126.25,1e-08]
[1744826935715,161.02872326,126.26,126.23,0.063]
[1744826935716,19.07613357,126.25,126.23,0.063]
[1744826935920,134.88781647,126.24,126.23,0.063]
[1744826936531,80.72944242,126.24,126.23,0.063]
[1744826936941,135.02997804,126.24,126.23,0.063]
[1744826937611,45.07613357,126.22,126.21,0.063]
[1744826937809,99.09234605,126.22,126.21,0.063]